bitfinex/quotes_BTCUSD_20250723
["timestamp","ask_amount","ask_price","bid_price","bid_amount"]
[1753281348770,0.00049052,118080.0,118070.0,1.33444882]
[1753281349226,0.00049052,118080.0,118070.0,0.97710513]
[1753281349443,0.00049052,118080.0,118070.0,1.03554882]
[1753281349896,0.00049052,118080.0,118070.0,1.02024882]
[1753281351963,0.00049052,118080.0,118070.0,0.66290513]
[1753281352206,0.00049052,118080.0,118070.0,0.64680513]
[1753281352628,0.00049052,118080.0,118070.0,1.01964882]
[1753281355487,0.22353437,118080.0,118070.0,0.005]
[1753281355709,0.47877998,118080.0,118070.0,0.005]
[1753281355920,0.53877998,118080.0,118070.0,0.18286051]
[1753281356128,0.53877998,118080.0,118070.0,0.18286058]
[1753281356345,0.53877998,118080.0,118070.0,0.19133006]
[1753281356559,0.53877998,118080.0,118070.0,0.18933006]
[1753281356969,0.53877998,118080.0,118070.0,0.19033006]
[1753281357171,0.53877998,118080.0,118070.0,0.18186058]
[1753281357388,0.53877998,118080.0,118070.0,0.01246955]
[1753281357609,0.53877998,118080.0,118070.0,0.19879946]
[1753281357820,0.53877998,118080.0,118070.0,0.20726879]
[1753281358020,0.53877998,118080.0,118070.0,0.21573805]
[1753281358222,0.36940329,118080.0,118070.0,0.21573762]
[1753281358429,0.37787212,118080.0,118070.0,0.21573769]
[1753281358649,0.36940329,118080.0,118070.0,0.21273725]
[1753281359292,0.37787205,118080.0,118070.0,0.21273725]
[1753281359509,0.37787147,118080.0,118070.0,0.21273725]
[1753281359878,0.36940286,118080.0,118070.0,0.21473725]
[1753281360076,0.36940279,118080.0,118070.0,0.21473725]
[1753281360313,0.36940279,118080.0,118070.0,0.21393725]
[1753281360917,0.31484806,118080.0,118070.0,0.21393725]
[1753281361090,0.07888052,118080.0,118070.0,0.21393725]
[1753281361922,0.06049052,118080.0,118070.0,0.59078996]
[1753281362125,0.06049052,118080.0,118070.0,0.33713357]
[1753281362343,0.06049052,118080.0,118070.0,0.32103357]
[1753281362557,0.06049052,118080.0,118070.0,0.67837726]
[1753281362826,0.06049052,118080.0,118070.0,0.32103357]
[1753281363074,0.06049052,118080.0,118070.0,0.67837726]
[1753281364132,0.06049052,118080.0,118070.0,0.32103357]
[1753281364565,0.06049052,118080.0,118070.0,0.69487726]
[1753281365471,0.46049052,118080.0,118070.0,0.69487726]
[1753281365883,0.46049052,118080.0,118070.0,0.99377726]
[1753281366081,0.06049052,118080.0,118070.0,0.99377726]
[1753281367203,0.06049052,118080.0,118070.0,0.71107726]
[1753281368071,0.06049052,118080.0,118070.0,0.69487726]
[1753281368276,0.17613711,118080.0,118070.0,0.31792357]
[1753281368479,0.13008806,118080.0,118070.0,0.31792357]
[1753281369109,0.13008806,118080.0,118070.0,0.32103357]
[1753281369316,0.12811806,118080.0,118070.0,0.32103357]
[1753281369751,0.12811806,118080.0,118070.0,0.67837726]
[1753281370245,0.06049052,118080.0,118070.0,0.67837726]
[1753281371075,0.06049052,118080.0,118070.0,0.69417726]
[1753281371292,0.06049052,118080.0,118070.0,1.04997726]
[1753281372168,0.06049052,118080.0,118070.0,1.04977726]
[1753281372595,0.00049052,118080.0,118070.0,1.05177726]
[1753281372838,0.00049052,118080.0,118070.0,0.69443357]
[1753281373034,0.00049052,118080.0,118070.0,1.04977726]
[1753281373726,0.00049052,118080.0,118070.0,1.05277726]
[1753281374418,0.00049052,118080.0,118070.0,1.03697726]
[1753281374852,0.00049052,118080.0,118070.0,1.05277726]
[1753281375283,0.00049052,118080.0,118070.0,1.03697726]
[1753281375529,0.00049052,118080.0,118070.0,1.05257726]
[1753281377932,0.00049052,118080.0,118070.0,1.35147726]
[1753281378363,0.00049052,118080.0,118070.0,1.02680829]
[1753281378364,0.01633983,118080.0,118070.0,1.02680829]
[1753281378581,0.01633983,118080.0,118070.0,0.86410435]
[1753281378797,0.01227589,118080.0,118070.0,1.03349538]
[1753281379063,0.48433707,118100.0,118090.0,0.21221485]
[1753281379291,0.10376466,118100.0,118090.0,0.29669215]
[1753281379569,0.07461567,118100.0,118090.0,0.27975671]
[1753281379778,0.07461567,118100.0,118090.0,0.29875215]
[1753281379779,0.06974466,118100.0,118090.0,0.29875215]
[1753281380858,0.06974466,118100.0,118090.0,0.29975215]
[1753281381281,0.07276466,118100.0,118090.0,0.29769215]
[1753281381488,0.07276466,118100.0,118090.0,0.25532175]
[1753281381723,0.07276466,118100.0,118090.0,0.26378979]
[1753281382566,0.08866466,118100.0,118090.0,0.26378979]
[1753281382789,0.08866466,118100.0,118090.0,0.54447113]
[1753281382996,0.05477742,118100.0,118090.0,0.54447113]
[1753281383211,0.07017742,118100.0,118090.0,0.54447113]
[1753281383551,0.06171067,118100.0,118090.0,0.54447113]
[1753281383657,0.06171067,118100.0,118090.0,0.4340772]
[1753281383658,0.08711157,118100.0,118090.0,0.4340772]
[1753281383872,0.45217462,118100.0,118090.0,0.01844902]
[1753281384091,0.22935142,118100.0,118090.0,0.01844902]
[1753281384310,0.17783046,118090.0,118070.0,0.47676015]
[1753281384527,0.02540534,118080.0,118070.0,0.5358007]
[1753281384738,0.00846818,118080.0,118070.0,0.87891034]
[1753281384955,0.00846818,118080.0,118070.0,0.89707034]
[1753281385166,0.13381962,118090.0,118080.0,0.34]
[1753281385396,0.32599944,118090.0,118080.0,0.34]
[1753281385825,0.32599944,118090.0,118080.0,0.51784545]
[1753281386289,0.32599944,118090.0,118080.0,0.50597287]
[1753281386505,0.28381962,118090.0,118080.0,0.17784545]
[1753281386957,0.28381962,118090.0,118080.0,0.18631406]
[1753281387176,0.31521962,118090.0,118080.0,0.17784545]
[1753281387455,0.31521962,118090.0,118080.0,0.135468]
[1753281387670,0.31521962,118090.0,118080.0,0.15240545]
[1753281387897,0.20923025,118090.0,118080.0,0.16985447]
[1753281388118,0.0460162,118090.0,118080.0,0.18679155]
[1753281388329,0.05448403,118090.0,118080.0,0.52508941]
[1753281388539,0.06559828,118090.0,118080.0,0.51491904]
[1753281388774,0.20713031,118090.0,118080.0,0.49747002]
[1753281388984,0.18580066,118090.0,118080.0,0.49747002]
[1753281389202,0.51363119,118090.0,118080.0,0.50645071]
[1753281389408,0.17486897,118090.0,118080.0,0.49747002]
[1753281389553,0.35323337,118090.0,118080.0,0.48900169]
[1753281389749,0.19233906,118090.0,118080.0,0.49746966]
[1753281389964,0.31693515,118090.0,118080.0,0.49746966]
[1753281390169,0.32540298,118090.0,118080.0,0.49746966]
[1753281390397,0.31693515,118090.0,118080.0,0.42458268]
[1753281390606,0.36081681,118100.0,118090.0,0.18629807]
[1753281390829,0.38514827,118100.0,118090.0,0.18629815]
[1753281391055,0.38514827,118100.0,118090.0,0.16936235]
[1753281391355,0.18629836,118090.0,118080.0,0.06815796]
[1753281391556,0.20216354,118090.0,118080.0,0.01744902]
[1753281391773,0.21746354,118090.0,118080.0,0.01744902]
[1753281391986,0.21746354,118090.0,118080.0,0.53529454]
[1753281392196,0.21746354,118090.0,118080.0,0.54376315]
[1753281392197,0.23326354,118090.0,118080.0,0.54376315]
[1753281392407,0.21796354,118090.0,118080.0,0.55223169]
[1753281392846,0.46774084,118090.0,118080.0,0.53529454]
[1753281393079,0.45290831,118090.0,118080.0,0.53529454]
[1753281393293,0.45344303,118090.0,118080.0,0.01744902]
[1753281393508,0.45344303,118090.0,118080.0,0.17784545]
[1753281393722,0.46137642,118090.0,118080.0,0.18631406]
[1753281393935,0.46137642,118090.0,118080.0,0.18631414]
[1753281394140,0.46137642,118090.0,118080.0,0.17733251]
[1753281394385,0.46137642,118090.0,118080.0,0.15699252]
[1753281394593,0.45344303,118090.0,118080.0,0.15699252]
[1753281394996,0.46137642,118090.0,118080.0,0.49699252]
[1753281395458,0.46137642,118090.0,118080.0,0.51444154]
[1753281395675,0.37689912,118090.0,118080.0,0.5313787]
[1753281395867,0.19126866,118090.0,118080.0,0.53984703]
[1753281396288,0.19126866,118090.0,118080.0,0.5093375]
[1753281396512,0.36909848,118090.0,118080.0,0.45849422]
[1753281396711,0.36063101,118090.0,118080.0,0.45002575]
[1753281396935,0.36063101,118090.0,118080.0,0.45849436]
[1753281397285,0.19476583,118090.0,118080.0,0.7658629]
[1753281397490,0.20323387,118090.0,118080.0,0.7743313]
[1753281397656,0.02540348,118090.0,118080.0,0.77433087]
[1753281397861,0.19741247,118090.0,118080.0,0.74045713]
[1753281398161,0.19476619,118090.0,118080.0,0.66481785]
[1753281398361,0.55884205,118090.0,118080.0,0.01744902]
[1753281398560,0.2219827,118090.0,118080.0,0.01744902]
[1753281399061,0.18631371,118080.0,118070.0,0.1395166]
[1753281399276,0.17784545,118080.0,118070.0,0.14494586]
[1753281399498,0.17784545,118080.0,118070.0,0.1364766]
[1753281399826,0.1778453,118080.0,118070.0,0.48494572]
[1753281399973,0.19478246,118080.0,118070.0,0.49341476]
[1753281400176,0.20325122,118080.0,118070.0,0.48494572]
[1753281400365,0.01693673,118080.0,118070.0,0.49845476]
[1753281400573,0.20678284,118090.0,118080.0,0.18631385]
[1753281400772,0.00846768,118090.0,118080.0,0.22269044]
[1753281400998,0.15846675,118100.0,118090.0,0.20374738]
[1753281401201,0.18386786,118100.0,118090.0,0.25510282]
[1753281401403,0.16693357,118100.0,118090.0,0.25814282]
[1753281401605,0.17540054,118100.0,118090.0,0.25814282]
[1753281401807,0.42071252,118100.0,118090.0,0.01744902]
[1753281402007,0.40377873,118100.0,118090.0,0.01744902]
[1753281402388,0.76112242,118100.0,118090.0,0.01744902]
[1753281402991,0.77772242,118100.0,118090.0,0.01744902]
[1753281403203,0.77872242,118100.0,118090.0,0.01744902]
[1753281403436,0.01693673,118080.0,118070.0,0.21224783]
[1753281403760,0.01693673,118080.0,118070.0,0.24890783]
[1753281404177,0.01693673,118080.0,118070.0,0.25737738]
[1753281404340,0.02540527,118080.0,118070.0,0.25737738]
[1753281404536,0.01693673,118080.0,118070.0,0.25737738]
[1753281404934,0.02540534,118080.0,118070.0,0.25737738]
[1753281405132,0.02540534,118080.0,118070.0,0.25837738]
[1753281405345,0.01693666,118080.0,118070.0,0.25837738]
[1753281405560,0.0254052,118080.0,118070.0,0.25837738]
[1753281405766,0.01693666,118080.0,118070.0,0.25937738]
[1753281405986,0.0254052,118080.0,118070.0,0.25937738]
[1753281406300,0.01693666,118080.0,118070.0,0.25937738]
[1753281406493,0.0254052,118080.0,118070.0,0.25937738]
[1753281406810,0.14902522,118090.0,118080.0,0.18682571]
[1753281407021,0.14902522,118090.0,118080.0,0.18833428]
[1753281407022,0.00846804,118090.0,118080.0,0.18833428]
[1753281407211,0.81131553,118100.0,118080.0,0.31502676]
[1753281407562,0.53784083,118090.0,118080.0,0.20100221]
[1753281407777,0.53519455,118090.0,118080.0,0.08046585]
[1753281408176,0.53519455,118090.0,118080.0,0.07540585]
[1753281408581,0.55169455,118090.0,118080.0,0.07540585]
[1753281408985,0.55169455,118090.0,118070.0,0.48489007]
[1753281408986,0.32784538,118080.0,118070.0,0.54369592]
[1753281409171,0.68518907,118080.0,118070.0,0.5521654]
[1753281409368,0.32784538,118080.0,118070.0,0.55216547]
[1753281409573,0.74518907,118080.0,118070.0,0.56063495]
[1753281409776,0.75365768,118080.0,118070.0,0.5118019]
[1753281409972,0.76212651,118080.0,118070.0,0.52027109]
[1753281410179,0.76212651,118080.0,118070.0,0.52331116]
[1753281410378,0.7589137,118080.0,118070.0,0.31800347]
[1753281410624,0.9394137,118080.0,118070.0,0.01910347]
[1753281410764,0.9242137,118080.0,118070.0,0.09453557]
[1753281411167,0.9089137,118080.0,118070.0,0.09453557]
[1753281411378,0.9089137,118080.0,118070.0,0.09553557]
[1753281411880,0.92477528,118080.0,118070.0,0.0764321]
[1753281412099,0.92477528,118080.0,118070.0,0.06502532]
[1753281412302,0.80527528,118080.0,118070.0,0.07643113]
[1753281412517,1.01788888,118080.0,118070.0,0.03405612]
[1753281412980,1.01788888,118080.0,118070.0,0.01744902]
[1753281413195,1.35836051,118080.0,118070.0,0.01040273]
[1753281414771,1.34463602,118080.0,118070.0,0.01040273]
[1753281416461,1.32877444,118080.0,118070.0,0.01040273]
[1753281416690,1.34463821,118080.0,118070.0,0.01040273]
[1753281417110,0.61355579,118080.0,118070.0,0.01040273]
[1753281417325,1.34463821,118080.0,118070.0,0.01040273]
[1753281417747,1.42911551,118080.0,118070.0,0.01040273]
[1753281418004,0.0254095,118060.0,118050.0,0.24621251]
[1753281418186,0.68405193,118060.0,118050.0,0.0155]
[1753281418429,0.2033023,118050.0,118040.0,0.29352988]
[1753281418637,0.2033023,118050.0,118040.0,0.10555579]
[1753281418638,0.57623694,118050.0,118040.0,0.10555579]
[1753281418854,0.39834666,118050.0,118030.0,0.31895946]
[1753281419063,0.40681764,118050.0,118040.0,0.18637699]
[1753281419267,0.40694117,118050.0,118040.0,0.19484819]
[1753281419486,0.40694117,118050.0,118040.0,0.19697819]
[1753281419487,0.39847048,118050.0,118040.0,0.19697819]
[1753281419756,0.39847048,118050.0,118040.0,0.20001819]
[1753281419984,0.39847048,118050.0,118040.0,0.55746721]
[1753281420216,0.38152959,118050.0,118040.0,0.57386721]
[1753281420456,0.01598838,118050.0,118040.0,0.93940842]
[1753281420702,0.0020838,118050.0,118040.0,1.02388572]
[1753281420953,0.16958295,118080.0,118070.0,0.19479881]
[1753281421226,0.15012473,118080.0,118070.0,0.22867819]
[1753281421487,0.00012473,118080.0,118070.0,0.24561649]
[1753281421742,0.00012473,118080.0,118070.0,1.04435943]
[1753281421991,0.00012473,118080.0,118070.0,1.01529834]
[1753281422239,0.00012473,118080.0,118070.0,1.02376782]
[1753281422480,0.00312473,118080.0,118070.0,1.02376782]
[1753281422733,0.00312473,118080.0,118070.0,0.65822661]
[1753281422985,0.00512473,118080.0,118070.0,1.02376782]
[1753281423247,0.00512473,118080.0,118070.0,0.65822661]
[1753281423506,0.00312473,118080.0,118070.0,0.65822661]
[1753281423753,0.18320305,118110.0,118100.0,0.21219835]
[1753281423968,0.1832862,118110.0,118100.0,0.26613857]
[1753281424190,0.1832862,118110.0,118100.0,0.26917857]
[1753281424429,0.3448165,118110.0,118100.0,0.26071146]
[1753281424660,0.33635004,118110.0,118100.0,0.29161146]
[1753281424894,0.16701601,118110.0,118100.0,0.31701264]
[1753281425124,0.02548212,118110.0,118100.0,0.25673553]
[1753281425370,0.02648212,118110.0,118100.0,0.25673553]
[1753281425641,0.78215701,118110.0,118100.0,0.01744902]
[1753281425884,0.77104507,118110.0,118100.0,0.01744902]
[1753281426136,0.92204507,118110.0,118100.0,0.01744902]
[1753281426384,0.93704507,118110.0,118100.0,0.01744902]
[1753281427334,0.92204507,118110.0,118100.0,0.07772613]
[1753281427574,0.98204507,118110.0,118100.0,0.07772613]
[1753281428234,0.98204507,118110.0,118090.0,0.00304]
[1753281428235,0.17781541,118100.0,118090.0,0.00304]
[1753281428448,0.58335662,118100.0,118090.0,0.00304]
[1753281428652,0.58335662,118100.0,118090.0,0.00517]
[1753281429268,0.58335662,118100.0,118080.0,0.09157691]
[1753281429269,0.19476647,118090.0,118080.0,0.09157691]
[1753281429522,0.20323437,118090.0,118080.0,0.01836052]
[1753281429947,0.1862975,118090.0,118080.0,0.1962059]
[1753281430149,0.1862975,118090.0,118080.0,0.21365492]
[1753281430369,0.19476533,118090.0,118080.0,0.22212353]
[1753281430586,0.20528337,118090.0,118080.0,0.01957902]
[1753281430805,0.2032333,118090.0,118080.0,0.20395571]
[1753281431020,0.20323337,118090.0,118080.0,0.03457902]
[1753281431240,0.20323401,118090.0,118080.0,0.03457902]
[1753281431457,0.19476633,118090.0,118080.0,0.03457902]
[1753281431680,0.19476633,118090.0,118080.0,0.03757902]
[1753281432375,0.19476633,118090.0,118080.0,0.03957902]
[1753281432590,0.18629822,118090.0,118080.0,0.03957902]
[1753281432796,0.23597307,118090.0,118080.0,0.03957902]
[1753281432998,0.19681633,118090.0,118080.0,0.03957902]
[1753281433249,0.1883485,118090.0,118080.0,0.03657902]
[1753281433466,0.1883485,118090.0,118080.0,0.03757902]
[1753281433646,0.1883485,118090.0,118080.0,0.2238933]
[1753281433855,0.5883485,118090.0,118080.0,0.23236191]
[1753281433987,0.5883485,118090.0,118080.0,0.03757902]
[1753281434188,0.5883485,118090.0,118080.0,0.03557902]
[1753281434440,1.17950142,118090.0,118080.0,0.01844902]
[1753281434693,1.18249142,118090.0,118080.0,0.01844902]
[1753281435051,0.78249142,118090.0,118080.0,0.01844902]
[1753281436288,0.69502412,118090.0,118080.0,0.01844902]
[1753281436427,0.3383485,118090.0,118080.0,0.2047633]
[1753281436612,0.3383485,118090.0,118080.0,0.2068933]
[1753281437098,0.3383485,118090.0,118080.0,0.02904785]
[1753281437349,0.3383485,118090.0,118080.0,0.2068933]
[1753281437592,0.3383485,118090.0,118080.0,0.21536199]
[1753281437799,0.32988046,118090.0,118080.0,0.19842454]
[1753281438101,0.32988046,118090.0,118080.0,0.20689323]
[1753281438329,0.15,118090.0,118080.0,0.2425701]
[1753281438538,0.15,118090.0,118080.0,0.2580701]
[1753281438954,0.39634982,118110.0,118100.0,0.22769858]
[1753281439124,0.41533268,118110.0,118100.0,0.22136161]
[1753281439502,0.4068665,118110.0,118100.0,0.22982865]
[1753281440171,0.4078665,118110.0,118100.0,0.22136161]
[1753281440408,0.4078665,118110.0,118100.0,0.22982886]
[1753281440757,0.4078665,118110.0,118100.0,0.2382959]
[1753281440956,0.4078665,118110.0,118100.0,0.24676287]
[1753281441163,0.4098665,118110.0,118100.0,0.22982886]
[1753281441372,0.4098665,118110.0,118100.0,0.22136168]
[1753281441626,0.21308315,118110.0,118100.0,0.22982879]
[1753281441802,0.23001536,118110.0,118100.0,0.25763568]
[1753281441967,0.15308315,118110.0,118100.0,0.25763568]
[1753281442382,0.00308315,118110.0,118100.0,0.34211298]
[1753281443731,0.00308315,118110.0,118100.0,0.68211298]
[1753281443950,8.315e-05,118110.0,118100.0,0.68211298]
[1753281444380,8.315e-05,118110.0,118100.0,0.68311298]
[1753281444889,8.315e-05,118110.0,118100.0,0.98201298]
[1753281450472,8.315e-05,118110.0,118100.0,0.68311298]
[1753281450698,8.315e-05,118110.0,118100.0,0.98201298]
[1753281452794,8.315e-05,118110.0,118100.0,0.66681298]
[1753281453081,0.02548183,118110.0,118100.0,0.66681298]
[1753281453234,0.0844327,118110.0,118100.0,0.57929568]
[1753281453435,0.41065918,118110.0,118100.0,0.57929568]
[1753281453865,0.41912536,118110.0,118100.0,0.58233568]
[1753281454102,0.67301943,118110.0,118100.0,0.56869879]
[1753281454264,0.50368576,118110.0,118100.0,0.24563272]
[1753281454463,0.50368568,118110.0,118100.0,0.26134212]
[1753281454748,0.51206898,118110.0,118100.0,0.26134212]
[1753281454954,0.52053552,118110.0,118100.0,0.2459431]
[1753281455167,0.51206898,118110.0,118100.0,0.2459431]
[1753281455391,0.40219315,118110.0,118100.0,0.2459431]
[1753281455597,0.42759197,118110.0,118100.0,0.2459431]
[1753281455804,0.44452505,118110.0,118100.0,0.2459431]
[1753281456047,0.60539261,118110.0,118100.0,0.20299199]
[1753281456266,0.60847261,118110.0,118100.0,0.20299199]
[1753281456477,0.64007574,118110.0,118100.0,0.18628259]
[1753281456682,0.20321659,118100.0,118090.0,0.18629822]
[1753281456896,0.20532659,118100.0,118090.0,0.19476605]
[1753281457101,0.1999397,118100.0,118090.0,0.18629822]
[1753281457296,0.02751104,118100.0,118090.0,0.20323358]
[1753281457521,0.05446225,118100.0,118090.0,0.20323358]
[1753281457739,0.00846768,118090.0,118080.0,0.20435327]
[1753281457952,0.02751319,118090.0,118080.0,0.27925933]
[1753281458392,0.02751304,118090.0,118080.0,0.20325086]
[1753281458590,0.02641615,118090.0,118080.0,0.20834086]
[1753281458846,0.43488383,118090.0,118080.0,0.20834086]
[1753281459070,0.41794861,118090.0,118080.0,0.20834086]
[1753281459279,0.41794861,118090.0,118080.0,0.21234086]
[1753281459488,0.41794861,118090.0,118080.0,0.22814086]
[1753281459947,0.41583861,118090.0,118080.0,0.33011816]
[1753281460171,0.4,118090.0,118080.0,0.33011816]
[1753281460348,0.41583773,118090.0,118080.0,0.32411816]
[1753281460746,0.41583773,118090.0,118080.0,0.32611816]
[1753281465504,0.01583773,118090.0,118080.0,0.32611816]
[1753281465958,0.01583773,118090.0,118080.0,0.34356718]
[1753281467065,0.06008315,118110.0,118100.0,0.22694933]
[1753281467283,0.06008315,118110.0,118100.0,0.31347663]
[1753281467558,0.06008315,118110.0,118100.0,0.31651663]
[1753281468408,0.00108315,118110.0,118100.0,0.31651663]
[1753281468623,1.33410359,118130.0,118120.0,0.1862509]
[1753281468857,0.01693128,118120.0,118110.0,0.18626624]
[1753281469068,0.41347379,118120.0,118110.0,0.21043832]
[1753281469278,0.80236279,118120.0,118110.0,0.21043846]
[1753281469497,0.80236272,118120.0,118110.0,0.21890464]
[1753281469707,0.80236272,118120.0,118110.0,0.21043846]
[1753281469908,0.7938969,118120.0,118110.0,0.21890464]
[1753281470139,0.86236272,118120.0,118110.0,0.21890464]
[1753281470354,0.8538969,118120.0,118110.0,0.21890464]
[1753281470565,0.85389661,118120.0,118110.0,0.2189079]
[1753281470783,0.45389654,118120.0,118110.0,0.2189079]
[1753281470992,0.06211,118120.0,118110.0,0.2389979]
[1753281471657,0.06411,118120.0,118110.0,0.2389979]
[1753281471865,0.06211,118120.0,118110.0,0.2389979]
[1753281472075,0.062,118120.0,118110.0,0.3408752]
[1753281472293,0.002,118120.0,118110.0,0.3408752]
[1753281472946,0.67360518,118130.0,118120.0,0.19471636]
[1753281473158,0.67571518,118130.0,118120.0,0.21042509]
[1753281473340,0.67571503,118130.0,118120.0,0.21042509]
[1753281473624,0.67571503,118130.0,118120.0,0.19471636]
[1753281473625,0.69264481,118130.0,118120.0,0.19471636]
[1753281473828,0.33596919,118130.0,118120.0,0.19471636]
[1753281474037,0.70110998,118130.0,118120.0,0.19471636]
[1753281474246,0.71840998,118130.0,118120.0,0.19471636]
[1753281474463,0.72148998,118130.0,118120.0,0.19471636]
[1753281474658,1.23079556,118130.0,118120.0,0.1862509]
[1753281474826,0.88333082,118130.0,118120.0,0.1862509]
[1753281475361,0.73333082,118130.0,118120.0,0.19466529]
[1753281475789,0.03522978,118130.0,118120.0,0.21884923]
[1753281475958,0.72023079,118130.0,118120.0,0.21884923]
[1753281476174,0.71758496,118130.0,118120.0,0.21884923]
[1753281476780,0.70065562,118130.0,118120.0,0.21884923]
[1753281476985,0.71758504,118130.0,118120.0,0.21884923]
[1753281477337,0.72604985,118130.0,118120.0,0.21884923]
[1753281477515,0.73451495,118130.0,118120.0,0.21884923]
[1753281478165,0.73451488,118130.0,118120.0,0.22419923]
[1753281478401,0.70912022,118130.0,118120.0,0.24009923]
[1753281478612,0.65461324,118130.0,118120.0,0.24009923]
[1753281478815,0.01692934,118130.0,118120.0,0.24009923]
[1753281479017,0.03385926,118130.0,118120.0,0.24009923]
[1753281479237,0.03650472,118130.0,118120.0,0.24009923]
[1753281479464,0.03849472,118130.0,118120.0,0.24009923]
[1753281479675,0.63906273,118130.0,118120.0,0.20196945]
[1753281479853,0.56183052,118130.0,118120.0,0.20196945]
[1753281479988,0.56183052,118130.0,118120.0,0.21043513]
[1753281480194,0.56080089,118130.0,118120.0,0.01571848]
[1753281480404,0.57059579,118130.0,118120.0,0.01571848]
[1753281480631,1.23014965,118130.0,118120.0,0.01571848]
[1753281481081,1.46462695,118130.0,118120.0,0.01571848]
[1753281481496,1.61462695,118130.0,118120.0,0.01571848]
[1753281481701,1.58412278,118130.0,118120.0,0.01571848]
[1753281482554,1.59006852,118130.0,118120.0,0.01571848]
[1753281482756,1.59206852,118130.0,118120.0,0.01571848]
[1753281483241,1.59206852,118130.0,118120.0,0.01526384]
[1753281483652,1.57172897,118130.0,118120.0,0.01526384]
[1753281483861,1.65774691,118130.0,118120.0,1e-08]
[1753281484073,2.01642253,118130.0,118120.0,1e-08]
[1753281484281,0.02540778,118070.0,118060.0,0.20646476]
[1753281484501,0.02540785,118070.0,118060.0,0.20908528]
[1753281484858,0.02540778,118070.0,118060.0,0.20908528]
[1753281485057,0.72785762,118080.0,118060.0,0.21755504]
[1753281485191,1.11043877,118080.0,118070.0,0.18632962]
[1753281485403,0.58438646,118080.0,118070.0,0.20014874]
[1753281485605,0.59529432,118080.0,118070.0,0.0164]
[1753281485809,0.03387667,118070.0,118060.0,0.20248516]
[1753281486118,0.05132569,118070.0,118060.0,0.22191516]
[1753281486320,0.04285622,118070.0,118060.0,0.22191516]
[1753281486546,0.04285622,118070.0,118060.0,0.23721516]
[1753281486768,0.52605231,118080.0,118070.0,0.17786058]
[1753281486963,0.53507155,118080.0,118070.0,0.18632998]
[1753281487142,0.01693844,118070.0,118060.0,0.23108531]
[1753281487343,0.85685044,118080.0,118060.0,0.24368514]
[1753281487554,1.21445945,118080.0,118060.0,0.24815433]
[1753281487753,0.0169383,118070.0,118060.0,0.24815433]
[1753281487953,0.02540749,118070.0,118060.0,0.24815433]
[1753281488205,1.20088477,118080.0,118070.0,0.18632962]
[1753281488402,1.21060331,118080.0,118070.0,0.18632962]
[1753281488582,1.14855001,118080.0,118070.0,0.18632962]
[1753281488781,1.3179267,118080.0,118070.0,0.18632962]
[1753281488992,1.3179267,118080.0,118070.0,0.19479881]
[1753281489196,1.14855001,118080.0,118070.0,0.19479888]
[1753281489391,1.14855001,118080.0,118070.0,0.203268]
[1753281489642,1.07228799,118080.0,118070.0,0.23318704]
[1753281489846,0.76470611,118080.0,118070.0,0.24868704]
[1753281490092,0.75623757,118080.0,118070.0,0.24868704]
[1753281490294,0.75623757,118080.0,118070.0,0.24799097]
[1753281490474,0.72233268,118080.0,118070.0,0.24799097]
[1753281490676,0.4338741,118080.0,118070.0,0.24799097]
[1753281490880,0.43438582,118080.0,118070.0,0.24799097]
[1753281491051,0.43438582,118080.0,118070.0,0.25299097]
[1753281491259,0.44285451,118080.0,118070.0,0.25299097]
[1753281491654,0.40557793,118080.0,118070.0,0.25499097]
[1753281491869,0.3971096,118080.0,118070.0,0.25499097]
[1753281492072,0.40557793,118080.0,118070.0,0.25499097]
[1753281492245,0.41334382,118080.0,118070.0,0.25499097]
[1753281492851,0.42181229,118080.0,118070.0,0.25499097]
[1753281493115,0.4302809,118080.0,118070.0,0.25499097]
[1753281493285,0.41334382,118080.0,118070.0,0.25499097]
[1753281493516,0.0506204,118080.0,118070.0,0.25499097]
[1753281493689,0.54060336,118080.0,118070.0,0.24652193]
[1753281493905,0.35164257,118080.0,118070.0,0.24652193]
[1753281494099,0.34,118080.0,118070.0,0.25499097]
[1753281494368,0.34,118080.0,118070.0,0.33946827]
[1753281494547,0.4,118080.0,118070.0,0.33946827]
[1753281495668,0.38983139,118080.0,118070.0,0.33946827]
[1753281496280,0.38983139,118080.0,118070.0,0.3551674]
[1753281496489,0.35693536,118090.0,118080.0,0.22558232]
[1753281496633,0.35693536,118090.0,118080.0,0.32788875]
[1753281496834,0.35693536,118090.0,118080.0,0.33110875]
[1753281497040,0.36540319,118090.0,118080.0,0.33110875]
[1753281497458,0.37387116,118090.0,118080.0,0.33110875]
[1753281498137,0.36540319,118090.0,118080.0,0.33110875]
[1753281498288,0.35693536,118090.0,118080.0,0.33210875]
[1753281498690,0.52459709,118090.0,118080.0,0.31517188]
[1753281498911,0.8896551,118090.0,118080.0,0.01669913]
[1753281499180,0.8896551,118090.0,118080.0,0.19454465]
[1753281499387,0.83881535,118090.0,118080.0,0.01669913]
[1753281499610,0.55135594,118090.0,118080.0,0.01669913]
[1753281499810,0.39046134,118090.0,118080.0,0.20301326]
[1753281500016,0.00125,118090.0,118080.0,0.22530013]
[1753281500262,0.35321759,118100.0,118090.0,0.18629836]
[1753281500414,0.3447507,118100.0,118090.0,0.20735673]
[1753281500636,0.3460007,118100.0,118090.0,0.20735673]
[1753281501467,0.6860007,118100.0,118090.0,0.20835673]
[1753281501668,0.6860007,118100.0,118090.0,0.21682448]
[1753281501850,0.6860007,118100.0,118090.0,0.21682456]
[1753281502032,1.04267632,118100.0,118090.0,0.20835673]
[1753281502441,0.89267632,118100.0,118090.0,0.20835673]
[1753281502645,0.89267632,118100.0,118090.0,0.21682456]
[1753281502911,0.88420921,118100.0,118090.0,0.19988883]
[1753281503426,0.88420921,118100.0,118090.0,0.20835687]
[1753281503579,0.88420921,118100.0,118090.0,0.21682477]
[1753281503780,0.87574189,118100.0,118090.0,0.20835687]
[1753281504332,0.87574189,118100.0,118090.0,0.21682484]
[1753281504900,0.87574189,118100.0,118090.0,0.19988883]
[1753281505128,0.87574189,118100.0,118090.0,0.19775883]
[1753281505373,0.87574189,118100.0,118090.0,0.2146947]
[1753281505822,0.83506903,118100.0,118090.0,0.20623971]
[1753281506011,0.83506903,118100.0,118090.0,0.19777174]
[1753281506224,0.83506903,118100.0,118090.0,0.01994128]
[1753281506462,0.80391709,118100.0,118090.0,0.18189861]
[1753281506665,0.80391709,118100.0,118090.0,0.19883448]
[1753281506897,0.80391709,118100.0,118090.0,0.19036658]
[1753281507107,0.44724147,118100.0,118090.0,0.19036658]
[1753281507364,0.81260661,118100.0,118090.0,0.19036658]
[1753281507728,0.81260661,118100.0,118090.0,0.18189861]
[1753281508411,0.82107401,118100.0,118090.0,0.19883462]
[1753281508599,0.81090588,118100.0,118090.0,0.19883462]
[1753281508808,0.7990368,118100.0,118090.0,0.20730252]
[1753281509060,0.7990368,118100.0,118090.0,0.21577035]
[1753281509185,0.72354929,118100.0,118090.0,0.22525252]
[1753281509401,0.74048394,118100.0,118090.0,0.23371999]
[1753281509601,0.90983195,118100.0,118090.0,0.22525224]
[1753281509842,0.90983195,118100.0,118090.0,0.23371992]
[1753281510214,0.90983195,118100.0,118090.0,0.23688992]
[1753281510591,0.72167048,118100.0,118090.0,0.25278949]